[Event "Chpt France Universitaire 2024"]
[Site "Bastia, France"]
[Date "2024.04.06"]
[Round "6.12"]
[White "Pheng, Wissam"]
[Black "Mathieu, Phileas"]
[Result "1-0"]
[TimeControl "15min+5s"]
[WhiteElo "1975"]
[BlackElo "2325"]

1. e4 {[%clk 00:15:05]} c5 {[%clk 00:15:05]} 2. b3 {[%clk 00:15:05]} {[%emt
00:00:02]} Nc6 {[%clk 00:15:04]} {[%emt 00:00:06]} 3. Bb2 {[%clk 00:15:05]}
{[%emt 00:00:01]} d6 {[%clk 00:15:04]} 4. Bb5 {[%clk 00:15:05]} {[%emt
00:00:01]} Bd7 {[%clk 00:15:04]} {[%emt 00:00:01]} 5. f4 {[%clk 00:15:05]} a6
{[%clk 00:14:59]} {[%emt 00:00:10]} 6. Bxc6 {[%clk 00:15:05]} {[%emt 00:00:01]}
Bxc6 {[%clk 00:14:59]} 7. d3 {[%clk 00:15:05]} {[%emt 00:00:01]} e6 {[%clk
00:14:45]} {[%emt 00:00:20]} 8. Nf3 {[%clk 00:15:05]} {[%emt 00:00:02]} Nf6
{[%clk 00:14:45]} 9. O-O {[%clk 00:15:05]} {[%emt 00:00:03]} Qc7 {[%clk
00:14:42]} {[%emt 00:00:08]} 10. Qe2 {[%clk 00:15:05]} {[%emt 00:00:02]} Be7
{[%clk 00:14:38]} {[%emt 00:00:10]} 11. Nbd2 {[%clk 00:15:05]} {[%emt
00:00:01]} O-O-O {[%clk 00:14:35]} {[%emt 00:00:08]} 12. a4 {[%clk 00:14:47]}
{[%emt 00:00:24]} h6 {[%clk 00:14:35]} {[%emt 00:00:01]} 13. e5 {[%clk
00:14:25]} {[%emt 00:00:28]} Nd5 {[%clk 00:14:31]} {[%emt 00:00:09]} 14. exd6
{[%clk 00:13:47]} {[%emt 00:00:43]} Bxd6 {[%clk 00:14:31]} {[%emt 00:00:01]} 15.
Ne5 {[%clk 00:13:47]} {[%emt 00:00:04]} Rhe8 {[%clk 00:13:55]} {[%emt
00:00:40]} 16. Ndc4 {[%clk 00:13:34]} {[%emt 00:00:19]} f6 {[%clk 00:13:55]}
{[%emt 00:00:05]} 17. Nxd6+ {[%clk 00:13:30]} {[%emt 00:00:10]} Qxd6 {[%clk
00:13:53]} {[%emt 00:00:07]} 18. Nf7 {[%clk 00:13:03]} {[%emt 00:00:31]} Qc7
{[%clk 00:13:53]} {[%emt 00:00:01]} 19. Nxd8 {[%clk 00:13:03]} {[%emt
00:00:02]} Kxd8 {[%clk 00:13:53]} 20. g3 {[%clk 00:12:39]} {[%emt 00:00:29]}
Qd7 {[%clk 00:13:16]} {[%emt 00:00:42]} 21. Rad1 {[%clk 00:11:50]} {[%emt
00:00:54]} Kc8 {[%clk 00:13:16]} {[%emt 00:00:04]} 22. d4 {[%clk 00:11:50]}
{[%emt 00:00:05]} cxd4 {[%clk 00:13:08]} {[%emt 00:00:13]} 23. Bxd4 {[%emt
00:00:09]} e5 {[%clk 00:13:05]} {[%emt 00:00:07]} 24. fxe5 {[%clk 00:11:46]}
{[%emt 00:00:03]} fxe5 {[%clk 00:13:05]} 25. Bb2 {[%clk 00:10:23]} {[%emt
00:01:29]} Qc7 {[%clk 00:12:35]} {[%emt 00:00:35]} 26. Rd3 {[%clk 00:09:55]}
{[%emt 00:00:33]} Kb8 {[%clk 00:12:01]} {[%emt 00:00:39]} 27. Rf5 {[%clk
00:09:12]} {[%emt 00:00:49]} Qb6+ {[%clk 00:09:35]} {[%emt 00:02:31]} 28. Kf1
{[%clk 00:09:12]} {[%emt 00:00:04]} Ka8 {[%clk 00:09:16]} {[%emt 00:00:24]} 29.
Qf2 {[%clk 00:08:14]} {[%emt 00:01:03]} Qc7 {[%clk 00:08:42]} {[%emt 00:00:39]}
30. Rf8 {[%clk 00:07:58]} {[%emt 00:00:20]} Qc8 {[%clk 00:08:32]} {[%emt
00:00:16]} 31. Rxe8 {[%clk 00:07:07]} {[%emt 00:00:56]} Qxe8 {[%clk 00:08:32]}
{[%emt 00:00:01]} 32. Rf3 {[%clk 00:06:22]} {[%emt 00:00:50]} Nf6 {[%clk
00:08:32]} 33. Rf5 {[%clk 00:06:13]} {[%emt 00:00:14]} Nd7 {[%clk 00:05:27]}
{[%emt 00:03:10]} 34. Qe3 {[%clk 00:03:05]} {[%emt 00:03:13]} g6 {[%clk
00:05:27]} {[%emt 00:00:02]} 35. Rf2 {[%clk 00:03:05]} {[%emt 00:00:03]} Qe6
{[%clk 00:05:04]} {[%emt 00:00:29]} 36. Re2 {[%clk 00:02:24]} {[%emt 00:00:46]}
Qd5 {[%clk 00:04:16]} {[%emt 00:00:53]} 37. Bxe5 {[%clk 00:01:53]} {[%emt
00:00:36]} Nc5 {[%clk 00:02:56]} {[%emt 00:01:26]} 38. Bd4 {[%clk 00:00:37]}
{[%emt 00:01:20]} Qh1+ {[%clk 00:02:56]} {[%emt 00:00:04]} 39. Qg1 {[%clk
00:00:37]} {[%emt 00:00:01]} Qf3+ {[%clk 00:02:56]} {[%emt 00:00:01]} 40. Ke1
{[%clk 00:00:37]} {[%emt 00:00:05]} Ne4 {[%clk 00:02:28]} {[%emt 00:00:33]} 41.
Qf1 {[%clk 00:00:37]} {[%emt 00:00:04]} Ng5 {[%clk 00:02:22]} {[%emt 00:00:12]}
42. h4 {[%clk 00:00:31]} {[%emt 00:00:11]} Qxg3+ {[%clk 00:01:35]} {[%emt
00:00:52]} 43. Qf2 {[%clk 00:00:31]} Nf3+ {[%clk 00:01:34]} {[%emt 00:00:07]}
44. Kd1 {[%clk 00:00:31]} {[%emt 00:00:01]} Qg4 {[%clk 00:01:24]} {[%emt
00:00:16]} 45. Bb6 {[%clk 00:00:31]} {[%emt 00:00:04]} Qb4 {[%clk 00:01:05]}
{[%emt 00:00:23]} 46. Qc5 {[%clk 00:00:28]} {[%emt 00:00:08]} Qxc5 {[%clk
00:00:44]} {[%emt 00:00:26]} 47. Bxc5 {[%clk 00:00:28]} {[%emt 00:00:01]} Nxh4
{[%clk 00:00:44]} {[%emt 00:00:01]} 48. Re6 {[%clk 00:00:28]} Kb8 {[%clk
00:00:39]} {[%emt 00:00:10]} 49. Bb6 {[%clk 00:00:28]} {[%emt 00:00:01]} Kc8
{[%clk 00:00:13]} {[%emt 00:00:31]} 50. Rd6 {[%clk 00:00:28]} Bd7 {[%clk
00:00:13]} 51. Rf6 {[%clk 00:00:28]} Bf5 {[%clk 00:00:13]} {[%emt 00:00:04]} 52.
Rd6 {[%clk 00:00:28]} {[%emt 00:00:02]} Bd7 {[%clk 00:00:13]} 53. Ke2 {[%clk
00:00:28]} {[%emt 00:00:02]} g5 {[%clk 00:00:12]} {[%emt 00:00:06]} 54. Rxh6
{[%clk 00:00:28]} {[%emt 00:00:04]} Bg4+ {[%clk 00:00:12]} 55. Ke1 {[%clk
00:00:28]} {[%emt 00:00:02]} Kd7 {[%clk 00:00:12]} {[%emt 00:00:01]} 56. Rh7+
{[%clk 00:00:28]} {[%emt 00:00:01]} Kc6 {[%clk 00:00:12]} 57. a5 {[%clk
00:00:28]} Bf5 {[%clk 00:00:12]} {[%emt 00:00:03]} 58. Rg7 {[%clk 00:00:28]}
{[%emt 00:00:02]} Bxc2 {[%clk 00:00:12]} {[%emt 00:00:02]} 59. b4 {[%clk
00:00:28]} {[%emt 00:00:05]} Ng6 {[%clk 00:00:12]} {[%emt 00:00:02]} 60. Kd2
{[%clk 00:00:28]} {[%emt 00:00:03]} Bf5 {[%clk 00:00:12]} {[%emt 00:00:02]} 61.
Ke3 {[%clk 00:00:28]} {[%emt 00:00:04]} g4 {[%clk 00:00:11]} {[%emt 00:00:05]}
62. Rc7+ {[%emt 00:00:03]} Kb5 {[%emt 00:00:02]} 63. Rc5+ {[%clk 00:00:28]}
{[%emt 00:00:01]} Kxb4 {[%clk 00:00:11]} 64. Rxf5 {[%clk 00:00:28]} {[%emt
00:00:01]} g3 {[%clk 00:00:11]} {[%emt 00:00:02]} 65. Rg5 {[%clk 00:00:28]} Ne7
{[%clk 00:00:00]} {[%emt 00:00:02]} 66. Bc5+ 1-0

[Event "Chpt France Universitaire 2024"]
[Site "Bastia, France"]
[Date "2024.04.07"]
[Round "7.1"]
[White "Dalaud, Dorian"]
[Black "Rakotomaharo, Fy Antenaina"]
[Result "1/2-1/2"]
[TimeControl "15min+5s"]
[WhiteElo "2307"]
[BlackElo "2448"]

1. e4 {[%clk 00:15:05]} {[%emt 00:00:01]} c5 {[%clk 00:15:05]} {[%emt
00:00:03]} 2. Nf3 {[%clk 00:15:02]} {[%emt 00:00:09]} Nc6 {[%clk 00:15:05]}
{[%emt 00:00:02]} 3. d4 {[%clk 00:14:50]} {[%emt 00:00:17]} cxd4 {[%clk
00:15:05]} {[%emt 00:00:03]} 4. Nxd4 {[%clk 00:14:50]} {[%emt 00:00:02]} Nf6
{[%clk 00:15:05]} {[%emt 00:00:02]} 5. Nc3 {[%clk 00:14:50]} {[%emt 00:00:02]}
h5 {[%clk 00:15:05]} {[%emt 00:00:02]} 6. Be2 {[%clk 00:13:28]} {[%emt
00:01:26]} g6 {[%clk 00:14:24]} {[%emt 00:00:47]} 7. Bg5 {[%clk 00:11:06]}
{[%emt 00:02:28]} Bg7 {[%clk 00:13:45]} {[%emt 00:00:44]} 8. O-O {[%clk
00:10:18]} {[%emt 00:00:53]} Qa5 {[%clk 00:11:41]} {[%emt 00:02:08]} 9. Nf3
{[%clk 00:08:29]} {[%emt 00:01:54]} d6 {[%clk 00:10:49]} {[%emt 00:00:57]} 10.
Bd2 {[%clk 00:07:44]} {[%emt 00:00:50]} Qd8 {[%clk 00:10:12]} {[%emt 00:00:43]}
11. h3 {[%clk 00:06:31]} {[%emt 00:01:17]} O-O {[%clk 00:10:05]} {[%emt
00:00:12]} 12. Be3 {[%clk 00:06:18]} {[%emt 00:00:18]} b6 {[%clk 00:09:39]}
{[%emt 00:00:31]} 13. Nd4 {[%clk 00:03:34]} {[%emt 00:02:49]} Bb7 {[%clk
00:09:39]} {[%emt 00:00:04]} 14. Nxc6 {[%clk 00:03:34]} {[%emt 00:00:02]} Bxc6
{[%clk 00:09:39]} {[%emt 00:00:02]} 15. Bf3 {[%clk 00:03:34]} {[%emt 00:00:02]}
b5 {[%clk 00:08:37]} {[%emt 00:01:07]} 16. Nd5 {[%clk 00:03:26]} {[%emt
00:00:12]} Bxd5 {[%clk 00:08:11]} {[%emt 00:00:31]} 17. exd5 {[%clk 00:03:26]}
{[%emt 00:00:01]} Nd7 {[%clk 00:08:11]} {[%emt 00:00:02]} 18. c3 {[%clk
00:03:11]} {[%emt 00:00:20]} a5 {[%clk 00:07:22]} {[%emt 00:00:54]} 19. a4
{[%clk 00:02:31]} {[%emt 00:00:46]} b4 {[%clk 00:06:18]} {[%emt 00:01:09]} 20.
cxb4 {[%clk 00:02:10]} {[%emt 00:00:26]} axb4 {[%clk 00:06:18]} {[%emt
00:00:01]} 21. Qb3 {[%clk 00:02:06]} {[%emt 00:00:09]} Qa5 {[%clk 00:05:23]}
{[%emt 00:01:00]} 22. Rfe1 {[%clk 00:01:24]} {[%emt 00:00:48]} Rfc8 {[%clk
00:05:00]} {[%emt 00:00:28]} 23. Re2 {[%clk 00:00:20]} {[%emt 00:01:08]} Be5
{[%clk 00:04:34]} {[%emt 00:00:31]} 24. Bd2 {[%clk 00:00:20]} {[%emt 00:00:05]}
Nc5 {[%clk 00:04:28]} {[%emt 00:00:11]} 25. Qxb4 {[%clk 00:00:20]} {[%emt
00:00:06]} Qxb4 {[%clk 00:04:06]} {[%emt 00:00:27]} 26. Bxb4 {[%clk 00:00:20]}
{[%emt 00:00:01]} Nxa4 {[%clk 00:03:52]} {[%emt 00:00:18]} 27. g3 {[%clk
00:00:10]} {[%emt 00:00:15]} Nxb2 {[%clk 00:03:10]} {[%emt 00:00:47]} 28. Rxa8
{[%clk 00:00:10]} {[%emt 00:00:02]} Rxa8 {[%clk 00:03:10]} 29. Kg2 {[%clk
00:00:10]} {[%emt 00:00:05]} Nd3 {[%clk 00:02:36]} {[%emt 00:00:39]} 30. Bd2
{[%clk 00:00:09]} {[%emt 00:00:06]} Ra1 {[%clk 00:02:36]} {[%emt 00:00:01]} 31.
h4 {[%clk 00:00:09]} {[%emt 00:00:05]} f5 {[%clk 00:02:33]} {[%emt 00:00:08]}
32. Re3 {[%clk 00:00:09]} {[%emt 00:00:05]} Nc5 {[%clk 00:02:22]} {[%emt
00:00:16]} 33. Bb4 {[%clk 00:00:09]} {[%emt 00:00:01]} Rc1 {[%clk 00:02:20]}
{[%emt 00:00:07]} 34. Bxc5 {[%clk 00:00:08]} {[%emt 00:00:07]} Rxc5 {[%clk
00:02:20]} {[%emt 00:00:01]} 35. Re2 {[%clk 00:00:08]} {[%emt 00:00:03]} Kf7
{[%clk 00:02:20]} {[%emt 00:00:05]} 36. Ra2 {[%clk 00:00:08]} {[%emt 00:00:02]}
Kf6 {[%clk 00:02:20]} {[%emt 00:00:02]} 37. Re2 {[%clk 00:00:08]} {[%emt
00:00:03]} Rc3 {[%clk 00:02:13]} {[%emt 00:00:13]} 38. Re3 {[%clk 00:00:08]}
{[%emt 00:00:03]} Rc1 {[%clk 00:02:13]} {[%emt 00:00:02]} 39. Re2 {[%clk
00:00:08]} {[%emt 00:00:02]} Rc8 {[%clk 00:01:58]} {[%emt 00:00:20]} 40. Ra2
{[%clk 00:00:08]} {[%emt 00:00:04]} g5 {[%clk 00:01:31]} {[%emt 00:00:32]} 41.
hxg5+ {[%clk 00:00:08]} {[%emt 00:00:02]} Kxg5 {[%clk 00:01:31]} {[%emt
00:00:01]} 42. Ra7 {[%clk 00:00:07]} {[%emt 00:00:06]} Bf6 {[%clk 00:01:30]}
{[%emt 00:00:06]} 43. Ra4 {[%clk 00:00:07]} {[%emt 00:00:02]} Rc2 {[%clk
00:01:30]} {[%emt 00:00:06]} 44. Rh4 {[%clk 00:00:07]} {[%emt 00:00:02]} Kg6
{[%clk 00:01:20]} {[%emt 00:00:15]} 45. Bxh5+ {[%clk 00:00:07]} {[%emt
00:00:02]} Kg7 {[%clk 00:01:20]} {[%emt 00:00:03]} 46. Rh2 {[%clk 00:00:07]}
{[%emt 00:00:01]} Bd4 {[%clk 00:01:18]} {[%emt 00:00:06]} 47. Kf3 {[%clk
00:00:07]} {[%emt 00:00:05]} Rd2 {[%clk 00:01:18]} {[%emt 00:00:04]} 48. Be8
{[%clk 00:00:07]} {[%emt 00:00:02]} Bb6 {[%clk 00:01:18]} {[%emt 00:00:06]} 49.
Bc6 {[%clk 00:00:07]} {[%emt 00:00:03]} Rc2 {[%clk 00:01:18]} {[%emt 00:00:01]}
50. Bd7 {[%clk 00:00:07]} {[%emt 00:00:02]} Kf6 {[%clk 00:01:16]} {[%emt
00:00:06]} 51. Be6 {[%clk 00:00:07]} {[%emt 00:00:02]} Ke5 {[%clk 00:01:16]}
{[%emt 00:00:01]} 52. g4 {[%clk 00:00:07]} {[%emt 00:00:05]} Rc3+ {[%clk
00:01:15]} {[%emt 00:00:06]} 53. Kg2 {[%clk 00:00:07]} {[%emt 00:00:05]} fxg4
{[%clk 00:01:15]} 54. Rh5+ {[%clk 00:00:07]} {[%emt 00:00:01]} Kf4 {[%clk
00:01:04]} {[%emt 00:00:16]} 55. Rf5+ {[%clk 00:00:07]} {[%emt 00:00:02]} Ke4
{[%clk 00:01:04]} 56. Rf7 {[%clk 00:00:07]} {[%emt 00:00:04]} Rf3 {[%clk
00:00:43]} {[%emt 00:00:25]} 57. Rxf3 {[%clk 00:00:07]} {[%emt 00:00:05]} gxf3+
{[%clk 00:00:43]} 58. Kf1 {[%clk 00:00:07]} Bd4 {[%clk 00:00:43]} {[%emt
00:00:04]} 59. Ke1 {[%clk 00:00:07]} {[%emt 00:00:03]} Bc3+ {[%clk 00:00:43]}
{[%emt 00:00:01]} 60. Kf1 {[%clk 00:00:07]} Kf4 {[%clk 00:00:43]} {[%emt
00:00:01]} 61. Kg1 {[%clk 00:00:07]} {[%emt 00:00:02]} Bd4 {[%clk 00:00:43]}
{[%emt 00:00:02]} 1/2-1/2

[Event "Chpt France Universitaire 2024"]
[Site "Bastia, France"]
[Date "2024.04.07"]
[Round "7.2"]
[White "Harutyunyan, Safar"]
[Black "Gatineau, Yovann"]
[Result "0-1"]
[TimeControl "15min+5s"]
[WhiteElo "2266"]
[BlackElo "2408"]

1. e4 {[%clk 00:15:05]} {[%emt 00:00:01]} e6 {[%clk 00:15:05]} {[%emt
00:00:01]} 2. d4 {[%clk 00:15:05]} d5 {[%clk 00:15:05]} {[%emt 00:00:02]} 3.
Nc3 {[%clk 00:15:05]} Nf6 {[%clk 00:15:05]} {[%emt 00:00:01]} 4. e5 {[%clk
00:15:05]} {[%emt 00:00:01]} Nfd7 {[%clk 00:15:05]} {[%emt 00:00:03]} 5. f4
{[%clk 00:15:05]} {[%emt 00:00:02]} c5 {[%clk 00:15:05]} {[%emt 00:00:01]} 6.
Nf3 {[%clk 00:15:05]} {[%emt 00:00:01]} Nc6 {[%clk 00:15:05]} {[%emt 00:00:01]}
7. Be3 {[%clk 00:15:05]} {[%emt 00:00:01]} Be7 {[%clk 00:15:05]} 8. Qd2 {[%clk
00:15:05]} {[%emt 00:00:05]} O-O {[%clk 00:15:05]} {[%emt 00:00:05]} 9. dxc5
{[%clk 00:15:05]} {[%emt 00:00:03]} Qa5 {[%clk 00:15:05]} {[%emt 00:00:05]} 10.
a3 {[%clk 00:15:05]} {[%emt 00:00:02]} a6 {[%clk 00:15:05]} {[%emt 00:00:04]}
11. Qd1 {[%clk 00:14:57]} {[%emt 00:00:13]} f6 {[%clk 00:13:23]} {[%emt
00:01:47]} 12. exf6 {[%clk 00:14:57]} {[%emt 00:00:02]} Nxf6 {[%clk 00:11:41]}
{[%emt 00:01:47]} 13. Qd2 {[%clk 00:14:57]} {[%emt 00:00:01]} Bxc5 {[%clk
00:11:13]} {[%emt 00:00:33]} 14. O-O-O {[%clk 00:13:29]} {[%emt 00:01:33]} Bd7
{[%clk 00:10:23]} {[%emt 00:00:55]} 15. Bxc5 {[%clk 00:13:15]} {[%emt
00:00:19]} Qxc5 {[%clk 00:10:23]} {[%emt 00:00:02]} 16. Nd4 {[%clk 00:12:14]}
{[%emt 00:01:06]} Rac8 {[%clk 00:10:04]} {[%emt 00:00:24]} 17. Nxc6 {[%clk
00:11:43]} {[%emt 00:00:36]} Rxc6 {[%clk 00:09:43]} {[%emt 00:00:26]} 18. Qd4
{[%clk 00:11:41]} {[%emt 00:00:07]} Qd6 {[%clk 00:08:52]} {[%emt 00:00:56]} 19.
g3 {[%clk 00:11:02]} {[%emt 00:00:44]} Rfc8 {[%clk 00:08:50]} {[%emt 00:00:07]}
20. Bd3 {[%clk 00:10:53]} {[%emt 00:00:15]} b5 {[%clk 00:07:37]} {[%emt
00:01:18]} 21. Rhe1 {[%clk 00:10:45]} {[%emt 00:00:12]} Rb6 {[%clk 00:06:45]}
{[%emt 00:00:57]} 22. Qb4 {[%clk 00:09:22]} {[%emt 00:01:28]} Qc7 {[%clk
00:05:18]} {[%emt 00:01:32]} 23. Kb1 {[%clk 00:08:03]} {[%emt 00:01:24]} Rbb8
{[%clk 00:05:07]} {[%emt 00:00:16]} 24. Qd4 {[%clk 00:05:55]} {[%emt 00:02:13]}
a5 {[%clk 00:05:07]} {[%emt 00:00:02]} 25. Qe5 {[%clk 00:05:54]} {[%emt
00:00:05]} Qc5 {[%clk 00:05:07]} {[%emt 00:00:01]} 26. Ne2 {[%clk 00:05:36]}
{[%emt 00:00:23]} b4 {[%clk 00:04:37]} {[%emt 00:00:35]} 27. a4 {[%clk
00:05:36]} {[%emt 00:00:01]} Bxa4 {[%clk 00:03:40]} {[%emt 00:01:03]} 28. Nd4
{[%clk 00:05:33]} {[%emt 00:00:07]} Kh8 {[%clk 00:03:24]} {[%emt 00:00:21]} 29.
b3 {[%clk 00:02:08]} {[%emt 00:03:30]} Bd7 {[%clk 00:03:24]} {[%emt 00:00:05]}
30. Nxe6 {[%clk 00:02:08]} {[%emt 00:00:02]} Bxe6 {[%clk 00:03:06]} {[%emt
00:00:23]} 31. Qxe6 {[%clk 00:02:08]} {[%emt 00:00:02]} a4 {[%clk 00:03:06]} 32.
Qe7 {[%clk 00:01:19]} {[%emt 00:00:54]} Qc3 {[%clk 00:02:39]} {[%emt 00:00:31]}
33. Qe5 {[%clk 00:01:19]} {[%emt 00:00:02]} d4 {[%clk 00:01:27]} {[%emt
00:01:17]} 34. Bc4 {[%clk 00:01:12]} {[%emt 00:00:12]} axb3 {[%clk 00:01:26]}
{[%emt 00:00:07]} 35. Bxb3 {[%clk 00:00:16]} {[%emt 00:01:01]} Ra8 {[%clk
00:01:26]} {[%emt 00:00:02]} 36. Ba4 {[%clk 00:00:16]} {[%emt 00:00:05]} Rxa4
{[%clk 00:01:19]} {[%emt 00:00:11]} 0-1

[Event "Chpt France Universitaire 2024"]
[Site "Bastia, France"]
[Date "2024.04.07"]
[Round "7.3"]
[White "Budak, Rewi"]
[Black "Eveno, Nathan"]
[Result "1-0"]
[TimeControl "15min+5s"]
[WhiteElo "2112"]
[BlackElo "2192"]

1. e4 {[%clk 00:15:05]} c5 {[%clk 00:15:05]} {[%emt 00:00:01]} 2. Nc3 {[%clk
00:15:05]} {[%emt 00:00:01]} a6 {[%clk 00:15:05]} {[%emt 00:00:01]} 3. f4
{[%clk 00:15:05]} {[%emt 00:00:03]} b5 {[%clk 00:15:05]} {[%emt 00:00:02]} 4.
d4 {[%clk 00:15:05]} cxd4 {[%clk 00:15:05]} {[%emt 00:00:03]} 5. Qxd4 {[%clk
00:15:05]} {[%emt 00:00:01]} Nc6 {[%clk 00:14:43]} {[%emt 00:00:27]} 6. Qf2
{[%clk 00:15:05]} {[%emt 00:00:01]} e6 {[%clk 00:14:15]} {[%emt 00:00:33]} 7.
Bd3 {[%clk 00:14:53]} {[%emt 00:00:18]} Bb7 {[%clk 00:14:13]} {[%emt 00:00:07]}
8. Nf3 {[%clk 00:14:43]} {[%emt 00:00:15]} Nf6 {[%clk 00:13:27]} {[%emt
00:00:51]} 9. e5 {[%clk 00:10:33]} {[%emt 00:04:16]} b4 {[%clk 00:12:51]}
{[%emt 00:00:41]} 10. Ne4 {[%clk 00:09:06]} {[%emt 00:01:32]} Nxe4 {[%clk
00:12:42]} {[%emt 00:00:14]} 11. Bxe4 {[%clk 00:09:06]} {[%emt 00:00:01]} d5
{[%clk 00:12:35]} {[%emt 00:00:12]} 12. Bd3 {[%clk 00:08:41]} {[%emt 00:00:29]}
Be7 {[%clk 00:11:41]} {[%emt 00:00:58]} 13. f5 {[%clk 00:06:59]} {[%emt
00:01:48]} exf5 {[%clk 00:07:37]} {[%emt 00:04:10]} 14. Bxf5 {[%clk 00:06:59]}
{[%emt 00:00:01]} Bc8 {[%clk 00:07:37]} {[%emt 00:00:03]} 15. Bd3 {[%clk
00:06:50]} {[%emt 00:00:13]} Be6 {[%clk 00:04:52]} {[%emt 00:02:49]} 16. h4
{[%clk 00:06:29]} {[%emt 00:00:25]} h5 {[%clk 00:04:12]} {[%emt 00:00:46]} 17.
Qg3 {[%clk 00:03:29]} {[%emt 00:03:06]} Bg4 {[%clk 00:03:55]} {[%emt 00:00:22]}
18. O-O {[%clk 00:03:29]} {[%emt 00:00:02]} Qb6+ {[%clk 00:01:18]} {[%emt
00:02:42]} 19. Kh1 {[%clk 00:03:29]} {[%emt 00:00:04]} Bxf3 {[%emt 00:00:13]}
20. Rxf3 {[%clk 00:03:25]} {[%emt 00:00:09]} O-O-O {[%clk 00:00:33]} {[%emt
00:00:43]} 21. Rxf7 {[%clk 00:02:50]} {[%emt 00:00:40]} Rdf8 {[%clk 00:00:33]}
{[%emt 00:00:02]} 22. Be3 {[%clk 00:02:50]} {[%emt 00:00:04]} d4 {[%clk
00:00:17]} {[%emt 00:00:21]} 23. Rxf8+ {[%clk 00:02:11]} {[%emt 00:00:44]} Rxf8
{[%clk 00:00:17]} 24. Bg5 {[%clk 00:02:11]} a5 {[%clk 00:00:10]} {[%emt
00:00:13]} 25. Bxe7 {[%clk 00:01:41]} {[%emt 00:00:35]} Nxe7 {[%clk 00:00:10]}
26. Qxg7 {[%clk 00:01:41]} {[%emt 00:00:02]} Qd8 {[%clk 00:00:10]} {[%emt
00:00:03]} 27. Qh6 {[%clk 00:01:23]} {[%emt 00:00:24]} Nd5 {[%clk 00:00:07]}
{[%emt 00:00:08]} 28. Qc6+ {[%clk 00:01:17]} {[%emt 00:00:10]} Kb8 {[%clk
00:00:07]} {[%emt 00:00:04]} 29. Kg1 {[%clk 00:00:58]} {[%emt 00:00:23]} Nb6
{[%clk 00:00:06]} {[%emt 00:00:06]} 30. Be4 {[%clk 00:00:58]} {[%emt 00:00:04]}
Qc7 {[%clk 00:00:06]} {[%emt 00:00:03]} 31. Qb5 {[%clk 00:00:44]} {[%emt
00:00:19]} Rd8 {[%clk 00:00:06]} {[%emt 00:00:05]} 32. Rf1 {[%clk 00:00:44]}
{[%emt 00:00:04]} d3 {[%clk 00:00:06]} {[%emt 00:00:05]} 33. cxd3 {[%clk
00:00:43]} {[%emt 00:00:06]} Ka7 {[%clk 00:00:06]} {[%emt 00:00:03]} 34. e6
{[%clk 00:00:43]} {[%emt 00:00:04]} Qd6 {[%clk 00:00:06]} {[%emt 00:00:03]} 35.
Qxa5+ {[%clk 00:00:39]} {[%emt 00:00:09]} Kb8 {[%clk 00:00:06]} {[%emt
00:00:01]} 36. Rf7 {[%clk 00:00:29]} {[%emt 00:00:14]} Qd4+ {[%clk 00:00:06]}
{[%emt 00:00:05]} 37. Kh2 {[%clk 00:00:29]} {[%emt 00:00:03]} Qd6+ {[%clk
00:00:06]} {[%emt 00:00:02]} 38. g3 {[%clk 00:00:29]} {[%emt 00:00:01]} Kc8
{[%clk 00:00:06]} {[%emt 00:00:05]} 39. Qa6+ {[%clk 00:00:29]} {[%emt
00:00:04]} 1-0